[Event "*** Titled Tuesday Blitz"]
[Site "Chess.com"]
[Date "2019.04.02"]
[Round "7"]
[White "rasmussvane"]
[Black "12teen"]
[Result "0-1"]
[WhiteElo "2755"]
[BlackElo "2657"]
[TimeControl "180+2"]
[EndTime "15:33:13 PDT"]
[Termination "12teen won by resignation"]

1. Nf3 {[%clk 0:03:01.9]} 1... a6 {[%clk 0:02:59.5]} 2. a4 {[%clk 0:02:59.5]}
2... b6 {[%clk 0:03:00.2]} 3. e4 {[%clk 0:02:59.3]} 3... Bb7 {[%clk 0:03:01.5]}
4. Nc3 {[%clk 0:03:00.9]} 4... e6 {[%clk 0:03:03.1]} 5. d4 {[%clk 0:02:59.6]}
5... Nf6 {[%clk 0:03:04.6]} 6. Bd3 {[%clk 0:03:00.5]} 6... d5 {[%clk 0:03:05.9]}
7. exd5 {[%clk 0:03:00.8]} 7... Nxd5 {[%clk 0:03:06.3]} 8. O-O {[%clk
0:03:00.4]} 8... Nxc3 {[%clk 0:03:07]} 9. bxc3 {[%clk 0:03:02.3]} 9... Be7
{[%clk 0:03:08.4]} 10. Ne5 {[%clk 0:03:03.1]} 10... Nd7 {[%clk 0:03:07.9]} 11.
Qg4 {[%clk 0:03:02.9]} 11... Nxe5 {[%clk 0:02:52.4]} 12. dxe5 {[%clk 0:03:02.9]}
12... Qd5 {[%clk 0:02:51.2]} 13. Re1 {[%clk 0:03:02.8]} 13... O-O-O {[%clk
0:02:43.1]} 14. a5 {[%clk 0:02:56.6]} 14... h5 {[%clk 0:02:37.2]} 15. Qh3 {[%clk
0:02:52.3]} 15... b5 {[%clk 0:02:33]} 16. Rb1 {[%clk 0:02:31.8]} 16... g5 {[%clk
0:02:29.9]} 17. c4 {[%clk 0:02:02.6]} 17... bxc4 {[%clk 0:02:21.6]} 18. Bf1
{[%clk 0:02:02.2]} 18... Qxa5 {[%clk 0:02:04.8]} 19. Bb2 {[%clk 0:01:54.3]}
19... Bb4 {[%clk 0:01:58.2]} 20. c3 {[%clk 0:01:50.8]} 20... Bc5 {[%clk
0:01:56.1]} 21. Bc1 {[%clk 0:01:40.7]} 21... g4 {[%clk 0:01:52.3]} 22. Qh4
{[%clk 0:01:42.1]} 22... Qxc3 {[%clk 0:01:49.6]} 23. Bg5 {[%clk 0:01:43.2]}
23... Rd4 {[%clk 0:01:16.2]} 24. Be3 {[%clk 0:01:31]} 24... Rd5 {[%clk
0:01:04.4]} 25. Rbc1 {[%clk 0:01:27.6]} 25... Qa5 {[%clk 0:00:59.9]} 26. Bxc5
{[%clk 0:01:24.6]} 26... Rxc5 {[%clk 0:00:58.8]} 27. Qf6 {[%clk 0:01:25.9]}
27... Rd8 {[%clk 0:00:55.6]} 28. Qxf7 {[%clk 0:01:26.3]} 28... Bd5 {[%clk
0:00:45.6]} 29. Qe7 {[%clk 0:01:21]} 29... Rc6 {[%clk 0:00:37.5]} 30. Red1
{[%clk 0:01:17.5]} 30... c3 {[%clk 0:00:35.8]} 31. Ra1 {[%clk 0:01:18.5]} 31...
c2 {[%clk 0:00:28.4]} 32. Rdc1 {[%clk 0:01:10.3]} 32... Qxa1 {[%clk 0:00:28.5]}
33. Rxa1 {[%clk 0:01:10.7]} 33... c1=Q {[%clk 0:00:30.4]} 34. Rxc1 {[%clk
0:01:12.1]} 34... Rxc1 {[%clk 0:00:32]} 35. Qg5 {[%clk 0:01:13.6]} 35... Ra1
{[%clk 0:00:25.7]} 36. h3 {[%clk 0:01:11]} 36... Bc4 {[%clk 0:00:25.6]} 37. hxg4
{[%clk 0:01:12.4]} 37... Rxf1+ {[%clk 0:00:25.5]} 38. Kh2 {[%clk 0:01:13.9]}
38... Rxf2 {[%clk 0:00:24.8]} 39. Qe3 {[%clk 0:01:07.9]} 39... Rdd2 {[%clk
0:00:25.2]} 40. gxh5 {[%clk 0:01:06.2]} 40... Rxg2+ {[%clk 0:00:26.6]} 41. Kh3
{[%clk 0:01:07.8]} 41... Rd3 {[%clk 0:00:27.4]} 42. Kxg2 {[%clk 0:00:56.8]}
42... Rxe3 {[%clk 0:00:27.5]} 43. h6 {[%clk 0:00:58.7]} 43... Bd3 {[%clk
0:00:28.6]} 0-1

[Event "*** Titled Tuesday Blitz"]
[Site "Chess.com"]
[Date "2019.04.02"]
[Round "7"]
[White "warmoatmeal"]
[Black "SanchezKelvin"]
[Result "0-1"]
[WhiteElo "1792"]
[BlackElo "2532"]
[TimeControl "180+2"]
[EndTime "15:33:15 PDT"]
[Termination "SanchezKelvin won by checkmate"]

1. d4 {[%clk 0:03:01.9]} 1... Nf6 {[%clk 0:03:00.5]} 2. Nf3 {[%clk 0:03:02.2]}
2... g6 {[%clk 0:03:00]} 3. c4 {[%clk 0:03:02.9]} 3... Bg7 {[%clk 0:03:01.9]} 4.
Nc3 {[%clk 0:03:03.5]} 4... O-O {[%clk 0:03:03.4]} 5. Bg5 {[%clk 0:03:04.8]}
5... d6 {[%clk 0:03:05.3]} 6. e3 {[%clk 0:03:05.7]} 6... Nc6 {[%clk 0:03:06.1]}
7. Be2 {[%clk 0:03:05.6]} 7... h6 {[%clk 0:03:06.8]} 8. Bh4 {[%clk 0:03:06.4]}
8... Qe8 {[%clk 0:03:07.8]} 9. O-O {[%clk 0:03:05.8]} 9... e5 {[%clk 0:03:08.5]}
10. Bxf6 {[%clk 0:02:47.4]} 10... Bxf6 {[%clk 0:03:08]} 11. Nd5 {[%clk
0:02:48.2]} 11... Bd8 {[%clk 0:03:08.4]} 12. Qc2 {[%clk 0:02:43.5]} 12... Bg4
{[%clk 0:02:58.4]} 13. Qb3 {[%clk 0:02:29.3]} 13... exd4 {[%clk 0:02:53.6]} 14.
exd4 {[%clk 0:02:06.6]} 14... Qxe2 {[%clk 0:02:50.6]} 15. Rfe1 {[%clk
0:02:07.1]} 15... Na5 {[%clk 0:02:20.8]} 16. Rxe2 {[%clk 0:01:42.5]} 16... Nxb3
{[%clk 0:02:20.9]} 17. axb3 {[%clk 0:01:41.2]} 17... c6 {[%clk 0:02:21.9]} 18.
Ne7+ {[%clk 0:01:38.3]} 18... Kg7 {[%clk 0:02:17.7]} 19. h3 {[%clk 0:01:25.1]}
19... Bxf3 {[%clk 0:02:17.6]} 20. gxf3 {[%clk 0:01:26.3]} 20... Bb6 {[%clk
0:02:12.6]} 21. d5 {[%clk 0:01:15.4]} 21... c5 {[%clk 0:02:09.9]} 22. f4 {[%clk
0:00:59.3]} 22... Kf6 {[%clk 0:02:09.9]} 23. Rae1 {[%clk 0:00:58.1]} 23... Rfe8
{[%clk 0:02:04.4]} 24. Re3 {[%clk 0:00:26.5]} 24... Bd8 {[%clk 0:01:45.3]} 25.
Nf5 {[%clk 0:00:23.2]} 25... Rxe3 {[%clk 0:01:37.1]} 26. Nxe3 {[%clk 0:00:25.1]}
26... Ba5 {[%clk 0:01:29]} 27. Ng4+ {[%clk 0:00:20.5]} 27... Kg7 {[%clk
0:01:29.2]} 28. Re7 {[%clk 0:00:21.4]} 28... h5 {[%clk 0:01:26.9]} 29. Ne3
{[%clk 0:00:20.6]} 29... Rb8 {[%clk 0:01:27.4]} 30. f5 {[%clk 0:00:21.4]} 30...
Kf6 {[%clk 0:01:28.1]} 31. Rd7 {[%clk 0:00:20.8]} 31... gxf5 {[%clk 0:01:29]}
32. Kg2 {[%clk 0:00:20.6]} 32... f4 {[%clk 0:01:29.5]} 33. Nf1 {[%clk
0:00:20.1]} 33... a6 {[%clk 0:01:27.6]} 34. Kf3 {[%clk 0:00:20.9]} 34... b5
{[%clk 0:01:26.2]} 35. Nd2 {[%clk 0:00:19.9]} 35... Bxd2 {[%clk 0:01:25.5]} 36.
Rxd6+ {[%clk 0:00:20.5]} 36... Ke5 {[%clk 0:01:24.7]} 37. Rxa6 {[%clk
0:00:22.4]} 37... bxc4 {[%clk 0:01:25.4]} 38. bxc4 {[%clk 0:00:23.2]} 38... Rb3+
{[%clk 0:01:23.5]} 39. Ke2 {[%clk 0:00:23.4]} 39... Rxb2 {[%clk 0:01:24.4]} 40.
d6 {[%clk 0:00:24.3]} 40... Ke6 {[%clk 0:01:20.9]} 41. Kf3 {[%clk 0:00:22.9]}
41... Rb3+ {[%clk 0:01:18.7]} 42. Ke4 {[%clk 0:00:23]} 42... f5# {[%clk
0:01:18.4]} 0-1

[Event "*** Titled Tuesday Blitz"]
[Site "Chess.com"]
[Date "2019.04.02"]
[Round "7"]
[White "Andreikka"]
[Black "grzechu96"]
[Result "1-0"]
[WhiteElo "2858"]
[BlackElo "2561"]
[TimeControl "180+2"]
[EndTime "15:33:18 PDT"]
[Termination "Andreikka won by resignation"]

1. e4 {[%clk 0:03:01.9]} 1... e5 {[%clk 0:02:54.3]} 2. Nf3 {[%clk 0:03:01.4]}
2... Nc6 {[%clk 0:02:55.7]} 3. Bc4 {[%clk 0:03:00.6]} 3... Nf6 {[%clk
0:02:56.4]} 4. d3 {[%clk 0:03:02]} 4... Be7 {[%clk 0:02:54.5]} 5. O-O {[%clk
0:03:03]} 5... O-O {[%clk 0:02:55.8]} 6. c3 {[%clk 0:03:04.2]} 6... d6 {[%clk
0:02:54.2]} 7. h3 {[%clk 0:03:00.2]} 7... Na5 {[%clk 0:02:52.6]} 8. Bb5 {[%clk
0:03:00.8]} 8... c5 {[%clk 0:02:53.6]} 9. Ba4 {[%clk 0:02:58.8]} 9... h6 {[%clk
0:02:46.3]} 10. Re1 {[%clk 0:02:59]} 10... a6 {[%clk 0:02:47.4]} 11. Bc2 {[%clk
0:02:54.7]} 11... Nc6 {[%clk 0:02:45.9]} 12. Nbd2 {[%clk 0:02:56.6]} 12... Re8
{[%clk 0:02:41.8]} 13. Nf1 {[%clk 0:02:58.5]} 13... Bf8 {[%clk 0:02:37.7]} 14.
Ng3 {[%clk 0:02:59.3]} 14... d5 {[%clk 0:02:37.3]} 15. exd5 {[%clk 0:02:58.1]}
15... Nxd5 {[%clk 0:02:38.6]} 16. Qe2 {[%clk 0:02:29.7]} 16... Be6 {[%clk
0:02:13.1]} 17. Bd2 {[%clk 0:02:26.4]} 17... Nf4 {[%clk 0:02:06.3]} 18. Bxf4
{[%clk 0:02:12.1]} 18... exf4 {[%clk 0:02:08.2]} 19. Ne4 {[%clk 0:02:13.1]}
19... Bd5 {[%clk 0:01:09.8]} 20. Qf1 {[%clk 0:02:08.7]} 20... Qd7 {[%clk
0:00:51.7]} 21. Ned2 {[%clk 0:02:00.9]} 21... Rxe1 {[%clk 0:00:50.5]} 22. Rxe1
{[%clk 0:02:00.7]} 22... Rd8 {[%clk 0:00:43.4]} 23. Qe2 {[%clk 0:02:00.1]} 23...
Be6 {[%clk 0:00:36.6]} 24. Qe4 {[%clk 0:01:57.6]} 24... Bf5 {[%clk 0:00:37.6]}
25. Qxf4 {[%clk 0:01:58.5]} 25... Bxd3 {[%clk 0:00:39.2]} 26. Bxd3 {[%clk
0:02:00.1]} 26... Qxd3 {[%clk 0:00:41.1]} 27. Ne4 {[%clk 0:01:58.7]} 27... Qd5
{[%clk 0:00:40.5]} 28. Qg3 {[%clk 0:01:45.9]} 28... Qxa2 {[%clk 0:00:25.4]} 29.
Qc7 {[%clk 0:01:29.3]} 29... Qxb2 {[%clk 0:00:11.1]} 30. Ne5 {[%clk 0:01:30.6]}
30... Nxe5 {[%clk 0:00:04.9]} 31. Qxd8 {[%clk 0:01:31.9]} 31... c4 {[%clk
0:00:03.2]} 32. Re3 {[%clk 0:01:13.7]} 32... Nd3 {[%clk 0:00:03]} 33. Nf6+
{[%clk 0:01:01.4]} 33... gxf6 {[%clk 0:00:02.7]} 34. Rg3+ {[%clk 0:01:02.9]}
34... Kh7 {[%clk 0:00:04]} 35. Qxf8 {[%clk 0:01:04.5]} 35... Qxf2+ {[%clk
0:00:05.4]} 36. Kh2 {[%clk 0:01:05.1]} 1-0

[Event "*** Titled Tuesday Blitz"]
[Site "Chess.com"]
[Date "2019.04.02"]
[Round "7"]
[White "maloy07"]
[Black "MatthewG-p4p"]
[Result "1-0"]
[WhiteElo "2842"]
[BlackElo "2689"]
[TimeControl "180+2"]
[EndTime "15:33:25 PDT"]
[Termination "maloy07 won by resignation"]

1. e4 {[%clk 0:03:01]} 1... e6 {[%clk 0:03:00.8]} 2. d4 {[%clk 0:03:00.4]} 2...
d5 {[%clk 0:03:02.2]} 3. Nc3 {[%clk 0:02:57.4]} 3... Bb4 {[%clk 0:03:03]} 4.
exd5 {[%clk 0:02:53.7]} 4... exd5 {[%clk 0:03:04.1]} 5. Bd3 {[%clk 0:02:53.9]}
5... Nf6 {[%clk 0:03:05]} 6. Ne2 {[%clk 0:02:54.9]} 6... O-O {[%clk 0:03:06]} 7.
O-O {[%clk 0:02:54.8]} 7... c6 {[%clk 0:03:07.4]} 8. Re1 {[%clk 0:02:52]} 8...
Re8 {[%clk 0:03:07.5]} 9. a3 {[%clk 0:02:50.6]} 9... Bd6 {[%clk 0:03:08.3]} 10.
Bf4 {[%clk 0:02:47.4]} 10... Bg4 {[%clk 0:03:09.3]} 11. f3 {[%clk 0:02:45.5]}
11... Bh5 {[%clk 0:03:09.9]} 12. Bxd6 {[%clk 0:02:43.9]} 12... Qxd6 {[%clk
0:03:11.8]} 13. Qd2 {[%clk 0:02:45.7]} 13... Nbd7 {[%clk 0:03:11]} 14. Qf4
{[%clk 0:02:44.4]} 14... Qxf4 {[%clk 0:03:10.1]} 15. Nxf4 {[%clk 0:02:45.2]}
15... Bg6 {[%clk 0:03:12]} 16. Kf2 {[%clk 0:02:43.3]} 16... Nb6 {[%clk
0:03:04.9]} 17. Bxg6 {[%clk 0:02:41.1]} 17... hxg6 {[%clk 0:03:05.8]} 18. Nd3
{[%clk 0:02:43]} 18... Nc4 {[%clk 0:03:05.7]} 19. h4 {[%clk 0:02:29.7]} 19...
Kf8 {[%clk 0:02:47.8]} 20. Re2 {[%clk 0:02:27.4]} 20... Rxe2+ {[%clk 0:02:47.9]}
21. Nxe2 {[%clk 0:02:24.8]} 21... Re8 {[%clk 0:02:48.5]} 22. g4 {[%clk
0:02:22.2]} 22... b6 {[%clk 0:02:43.3]} 23. a4 {[%clk 0:02:20.8]} 23... Nd7
{[%clk 0:02:35.5]} 24. a5 {[%clk 0:02:15.5]} 24... Ke7 {[%clk 0:02:02.6]} 25. b3
{[%clk 0:02:13.9]} 25... Nd6 {[%clk 0:01:59.5]} 26. axb6 {[%clk 0:02:11.9]}
26... axb6 {[%clk 0:02:01.4]} 27. Ra6 {[%clk 0:02:10.3]} 27... Nb5 {[%clk
0:01:55.6]} 28. c4 {[%clk 0:02:08.9]} 28... dxc4 {[%clk 0:01:24]} 29. bxc4
{[%clk 0:02:10.8]} 29... Nc7 {[%clk 0:01:25.1]} 30. Ra7 {[%clk 0:02:07.7]} 30...
Rc8 {[%clk 0:01:26.6]} 31. Nc3 {[%clk 0:02:05.1]} 31... Kf8 {[%clk 0:00:48.8]}
32. Ne4 {[%clk 0:02:03.5]} 32... Ke7 {[%clk 0:00:43.6]} 33. Nb4 {[%clk
0:02:02.8]} 33... Ne6 {[%clk 0:00:31.3]} 34. d5 {[%clk 0:02:00]} 34... cxd5
{[%clk 0:00:32.7]} 35. Nxd5+ {[%clk 0:01:58.8]} 35... Kd8 {[%clk 0:00:32.5]} 36.
Rxd7+ {[%clk 0:01:54.3]} 36... Kxd7 {[%clk 0:00:33]} 37. Nxb6+ {[%clk
0:01:56.2]} 37... Kc7 {[%clk 0:00:33.2]} 38. Nxc8 {[%clk 0:01:57.7]} 38... Kxc8
{[%clk 0:00:35.1]} 39. Nd6+ {[%clk 0:01:58.9]} 39... Kd7 {[%clk 0:00:36.6]} 40.
Nxf7 {[%clk 0:02:00.3]} 40... Ke7 {[%clk 0:00:37.5]} 41. Ne5 {[%clk 0:02:01.2]}
41... g5 {[%clk 0:00:39]} 42. h5 {[%clk 0:02:01]} 42... Kd6 {[%clk 0:00:38.9]}
43. Nd3 {[%clk 0:02:01.8]} 43... Nd4 {[%clk 0:00:37.7]} 44. Ke3 {[%clk 0:02:03]}
44... Nc6 {[%clk 0:00:37.2]} 45. Ke4 {[%clk 0:02:03.8]} 45... Ne7 {[%clk
0:00:38.6]} 46. c5+ {[%clk 0:02:04.4]} 46... Ke6 {[%clk 0:00:39.2]} 47. Nb4
{[%clk 0:02:05.1]} 47... Ng8 {[%clk 0:00:35.2]} 48. Nd5 {[%clk 0:02:06.1]} 48...
Nh6 {[%clk 0:00:36.2]} 49. c6 {[%clk 0:02:03.5]} 49... Nf7 {[%clk 0:00:37.7]}
50. c7 {[%clk 0:02:04.8]} 50... Nd6+ {[%clk 0:00:39]} 51. Kd4 {[%clk 0:02:06.1]}
51... Kd7 {[%clk 0:00:37.6]} 52. Ke5 {[%clk 0:02:05.3]} 52... Nc4+ {[%clk
0:00:32.5]} 53. Kf5 {[%clk 0:02:06.5]} 53... Nd2 {[%clk 0:00:33.8]} 54. Kxg5
{[%clk 0:02:07.5]} 54... Nxf3+ {[%clk 0:00:35.1]} 55. Kg6 {[%clk 0:02:08.6]}
55... Ne5+ {[%clk 0:00:33.9]} 56. Kxg7 {[%clk 0:02:09.9]} 56... Nxg4 {[%clk
0:00:35.2]} 57. Nf6+ {[%clk 0:02:09.2]} 1-0

[Event "*** Titled Tuesday Blitz"]
[Site "Chess.com"]
[Date "2019.04.02"]
[Round "7"]
[White "Robin-Side"]
[Black "StephenDedalus83"]
[Result "0-1"]
[WhiteElo "2572"]
[BlackElo "2659"]
[TimeControl "180+2"]
[EndTime "15:33:37 PDT"]
[Termination "StephenDedalus83 won on time"]

1. d4 {[%clk 0:02:47.8]} 1... Nf6 {[%clk 0:03:00.2]} 2. Nc3 {[%clk 0:02:48.7]}
2... d5 {[%clk 0:02:59.5]} 3. e4 {[%clk 0:02:49.9]} 3... dxe4 {[%clk 0:02:58.8]}
4. f3 {[%clk 0:02:51.3]} 4... exf3 {[%clk 0:02:57.5]} 5. Nxf3 {[%clk 0:02:53.2]}
5... Bg4 {[%clk 0:02:58.4]} 6. h3 {[%clk 0:02:54]} 6... Bxf3 {[%clk 0:02:58.9]}
7. Qxf3 {[%clk 0:02:55.9]} 7... c6 {[%clk 0:03:00.2]} 8. Qf2 {[%clk 0:02:55.2]}
8... e6 {[%clk 0:02:57.6]} 9. Bd3 {[%clk 0:02:54.9]} 9... Nbd7 {[%clk
0:02:56.2]} 10. Bd2 {[%clk 0:02:52.8]} 10... Bd6 {[%clk 0:02:55.1]} 11. O-O-O
{[%clk 0:02:53.2]} 11... Qc7 {[%clk 0:02:56]} 12. g4 {[%clk 0:02:53.6]} 12... h6
{[%clk 0:02:52.9]} 13. Rhg1 {[%clk 0:02:54]} 13... O-O-O {[%clk 0:02:20.9]} 14.
h4 {[%clk 0:02:53.8]} 14... Rdf8 {[%clk 0:02:17.9]} 15. g5 {[%clk 0:02:43.8]}
15... hxg5 {[%clk 0:02:18.2]} 16. hxg5 {[%clk 0:02:45.7]} 16... Rh2 {[%clk
0:02:18.3]} 17. Rg2 {[%clk 0:02:40.9]} 17... Rxg2 {[%clk 0:02:10.8]} 18. Qxg2
{[%clk 0:02:42.8]} 18... Nd5 {[%clk 0:02:12]} 19. Ne4 {[%clk 0:02:41.6]} 19...
Bf4 {[%clk 0:02:11.9]} 20. c3 {[%clk 0:02:00.6]} 20... Bxd2+ {[%clk 0:02:07]}
21. Qxd2 {[%clk 0:01:50.8]} 21... Qf4 {[%clk 0:02:04.1]} 22. Rf1 {[%clk
0:01:49.7]} 22... Qxd2+ {[%clk 0:02:03.9]} 23. Kxd2 {[%clk 0:01:51.6]} 23... Kc7
{[%clk 0:02:03.1]} 24. c4 {[%clk 0:01:40.6]} 24... Ne7 {[%clk 0:02:02.5]} 25.
Ng3 {[%clk 0:01:26.6]} 25... g6 {[%clk 0:01:59.6]} 26. Rh1 {[%clk 0:01:20.8]}
26... Nf5 {[%clk 0:02:00.2]} 27. Bxf5 {[%clk 0:01:16.5]} 27... exf5 {[%clk
0:02:00.8]} 28. Rh7 {[%clk 0:01:07.9]} 28... Kd6 {[%clk 0:02:01]} 29. Ne2 {[%clk
0:01:07.2]} 29... Ke7 {[%clk 0:01:57.4]} 30. Nf4 {[%clk 0:01:07.6]} 30... Rg8
{[%clk 0:01:58.4]} 31. Kd3 {[%clk 0:01:00.8]} 31... Nf8 {[%clk 0:01:58.9]} 32.
Rh2 {[%clk 0:00:57.9]} 32... Ne6 {[%clk 0:01:59.7]} 33. Re2 {[%clk 0:00:51.2]}
33... Kd6 {[%clk 0:01:49.3]} 34. Nxe6 {[%clk 0:00:49.7]} 34... fxe6 {[%clk
0:01:50.1]} 35. c5+ {[%clk 0:00:51.3]} 35... Ke7 {[%clk 0:01:48.8]} 36. Rh2
{[%clk 0:00:52.6]} 36... Rg7 {[%clk 0:01:45.2]} 37. Rh8 {[%clk 0:00:50.2]} 37...
e5 {[%clk 0:01:45]} 38. dxe5 {[%clk 0:00:48]} 38... Ke6 {[%clk 0:01:45.4]} 39.
Re8+ {[%clk 0:00:44.3]} 39... Re7 {[%clk 0:01:33.1]} 40. Rg8 {[%clk 0:00:45.1]}
40... Kxe5 {[%clk 0:01:30.8]} 41. Rxg6 {[%clk 0:00:46]} 41... Kf4 {[%clk
0:01:31.6]} 42. Rg8 {[%clk 0:00:42]} 42... Kg3 {[%clk 0:01:25.8]} 43. g6 {[%clk
0:00:35.5]} 43... f4 {[%clk 0:01:26.5]} 44. Rf8 {[%clk 0:00:10.6]} 44... f3
{[%clk 0:01:26.7]} 45. Rf7 {[%clk 0:00:06.6]} 45... f2 {[%clk 0:01:27.4]} 46.
Rxe7 {[%clk 0:00:05.5]} 46... f1=Q+ {[%clk 0:01:28]} 47. Kd4 {[%clk 0:00:02.9]}
47... Qf6+ {[%clk 0:01:28.3]} 48. Re5 {[%clk 0:00:02.9]} 48... Kf4 {[%clk
0:01:29.2]} 0-1

[Event "*** Titled Tuesday Blitz"]
[Site "Chess.com"]
[Date "2019.04.02"]
[Round "7"]
[White "GremioPrudente"]
[Black "dopolian"]
[Result "0-1"]
[WhiteElo "2058"]
[BlackElo "2196"]
[TimeControl "180+2"]
[EndTime "15:33:38 PDT"]
[Termination "dopolian won on time"]

1. Nf3 {[%clk 0:03:01.9]} 1... Nf6 {[%clk 0:03:00.5]} 2. d4 {[%clk 0:03:02.5]}
2... b6 {[%clk 0:02:57.8]} 3. g3 {[%clk 0:03:03]} 3... Bb7 {[%clk 0:02:59]} 4.
Bg2 {[%clk 0:03:04.5]} 4... e6 {[%clk 0:03:00.5]} 5. O-O {[%clk 0:03:05.9]} 5...
Be7 {[%clk 0:03:01.3]} 6. c4 {[%clk 0:03:07.3]} 6... O-O {[%clk 0:03:02.1]} 7.
Nc3 {[%clk 0:03:08.8]} 7... d6 {[%clk 0:03:00.9]} 8. b3 {[%clk 0:03:07.6]} 8...
Nbd7 {[%clk 0:03:00.5]} 9. Bb2 {[%clk 0:03:05.5]} 9... e5 {[%clk 0:03:01.4]} 10.
dxe5 {[%clk 0:03:04.9]} 10... Nxe5 {[%clk 0:03:01]} 11. Nxe5 {[%clk 0:03:03.1]}
11... Bxg2 {[%clk 0:03:02]} 12. Nxf7 {[%clk 0:02:54]} 12... Rxf7 {[%clk
0:03:03.3]} 13. Kxg2 {[%clk 0:02:55]} 13... Qd7 {[%clk 0:02:59.3]} 14. Nd5
{[%clk 0:02:52.2]} 14... Nxd5 {[%clk 0:02:48.8]} 15. Qxd5 {[%clk 0:02:48.3]}
15... Re8 {[%clk 0:02:44.8]} 16. Rad1 {[%clk 0:02:41.9]} 16... Kf8 {[%clk
0:02:36]} 17. Rd3 {[%clk 0:02:34.1]} 17... Bf6 {[%clk 0:02:35.2]} 18. Bxf6
{[%clk 0:02:32.3]} 18... Rxf6 {[%clk 0:02:37.1]} 19. e3 {[%clk 0:01:59.6]} 19...
Rf5 {[%clk 0:02:27.2]} 20. Qd4 {[%clk 0:01:52]} 20... Qc6+ {[%clk 0:02:26.4]}
21. Kg1 {[%clk 0:01:48.8]} 21... Ree5 {[%clk 0:02:15.3]} 22. Qh4 {[%clk
0:01:39.6]} 22... Kg8 {[%clk 0:02:08.3]} 23. Rd4 {[%clk 0:01:33]} 23... Rh5
{[%clk 0:02:05.7]} 24. Qd8+ {[%clk 0:01:32.1]} 24... Re8 {[%clk 0:02:06.6]} 25.
Rh4 {[%clk 0:00:18.2]} 25... Rxd8 {[%clk 0:02:03.5]} 26. Rxh5 {[%clk 0:00:19.4]}
26... Rf8 {[%clk 0:01:51.4]} 27. Rd5 {[%clk 0:00:19.1]} 27... Qe8 {[%clk
0:01:50.7]} 28. Rd4 {[%clk 0:00:16.5]} 28... Qf7 {[%clk 0:01:51.1]} 29. Rd5
{[%clk 0:00:16.6]} 29... Qf6 {[%clk 0:01:48.5]} 30. Rd4 {[%clk 0:00:17.5]} 30...
Re8 {[%clk 0:01:42.5]} 31. Rd5 {[%clk 0:00:18.2]} 31... Re5 {[%clk 0:01:43.1]}
32. Rd4 {[%clk 0:00:19.2]} 32... Qe6 {[%clk 0:01:42.2]} 33. Rf4 {[%clk 0:00:17]}
33... g5 {[%clk 0:01:39.4]} 34. Rd4 {[%clk 0:00:17.6]} 34... Rxe3 {[%clk
0:01:36.9]} 35. Rxd6 {[%clk 0:00:11.5]} 35... cxd6 {[%clk 0:01:36.5]} 36. fxe3
{[%clk 0:00:12.4]} 36... Qxe3+ {[%clk 0:01:38.4]} 37. Kg2 {[%clk 0:00:13.3]}
37... g4 {[%clk 0:01:36.5]} 38. Rf2 {[%clk 0:00:13.9]} 38... h5 {[%clk
0:01:35.7]} 39. Rb2 {[%clk 0:00:14.1]} 39... Qe4+ {[%clk 0:01:36]} 40. Kf1
{[%clk 0:00:13.3]} 40... Qh1+ {[%clk 0:01:36.2]} 41. Ke2 {[%clk 0:00:13.4]}
41... Qg2+ {[%clk 0:01:37]} 42. Kd3 {[%clk 0:00:15]} 42... Qxb2 {[%clk
0:01:38.9]} 43. Ke4 {[%clk 0:00:16.4]} 43... Qxa2 {[%clk 0:01:39.8]} 44. Kd5
{[%clk 0:00:18.2]} 44... Qxh2 {[%clk 0:01:40.8]} 45. Kc6 {[%clk 0:00:20.1]}
45... Qxg3 {[%clk 0:01:42]} 46. Kd7 {[%clk 0:00:22]} 46... Qxb3 {[%clk
0:01:42.6]} 47. Ke8 {[%clk 0:00:21.2]} 47... h4 {[%clk 0:01:43.2]} 48. Kd7
{[%clk 0:00:23.1]} 48... g3 {[%clk 0:01:44.4]} 49. Kc8 {[%clk 0:00:23.1]} 49...
Qxc4+ {[%clk 0:01:45.1]} 50. Kb7 {[%clk 0:00:25]} 50... d5 {[%clk 0:01:46.1]}
51. Kb8 {[%clk 0:00:25]} 51... b5 {[%clk 0:01:46.7]} 52. Kb7 {[%clk 0:00:26.7]}
52... a5 {[%clk 0:01:47.5]} 0-1